[Event "4th Memorial Warakomska-B 2020"]
[Site "Suwalki"]
[Date "2020.08.11"]
[Round "7.8"]
[White "Milewski, Karol"]
[Black "Czech, Mieczyslaw"]
[Result "1/2-1/2"]
[ECO "D35"]
[WhiteElo "1795"]
[BlackElo "1863"]
[Annotator "NA"]
[PlyCount "160"]
[EventDate "2020.08.06"]
[EventType "swiss"]
[EventCountry "POL"]
[SourceTitle "playchess.com"]
[Source "ChessBase"]
[SourceQuality "1"]
[TimeControl "40/5400+30:1800+30"]

1. d4 {[%emt 0:00:00]} d5 {[%emt 0:00:00]} 2. c4 {[%emt 0:00:00]} e6 {[%emt 0:00:03]} 3. Nc3 {[%emt 0:00:02]} Nf6 {[%emt 0:00:35]} 4. cxd5 {[%emt 0:00:44]} exd5 {[%emt 0:00:12]} 5. Bg5 {[%emt 0:00:19]} Be7 {[%emt 0:00:20]} 6. e3 {[%emt 0:00:34]} c6 {[%emt 0:00:13]} 7. Bd3 {[%emt 0:00:18]} O-O {[%emt 0:00:19]} 8. Nge2 {[%emt 0:00:55]} Re8 {[%emt 0:01:50]} 9. O-O {[%emt 0:00:50]} Nbd7 {[%emt 0:00:10]} 10. Qc2 {[%emt 0:02:07]} Nf8 {[%emt 0:02:30]} 11. Rab1 {[%emt 0:05:17]} Be6 {[%emt 0:12:22]} 12. b4 {[%emt 0:03:41] D36: Queen's Gambit Declined: Exchange Variation: Main line (5 Bg5 c6 6 Qc2).} Rc8 {[%emt 0:00:30]} 13. f3 {[%emt 0:08:08]} Nh5 {[%emt 0:08:08]} 14. Bxe7 {[%emt 0:02:56]} Qxe7 {[%emt 0:00:32] [#]} 15. a3 $146 {[%emt 0:04:46]} ({Predecessor:} 15. e4 dxe4 16. fxe4 Rcd8 17. e5 f6 18. Ne4 fxe5 19. dxe5 Bd5 20. Nd6 Qg5 21. Rf2 Rxe5 22. Nxb7 {0-1 (32) Blokh,M-Lepikhov,A ICCF corr 1992}) 15... g6 {[%emt 0:04:38]} 16. e4 {[%emt 0:06:21]} dxe4 {[%emt 0:09:09]} 17. fxe4 {[%emt 0:04:05]} Qg5 {[%emt 0:01:00]} 18. Qc1 {[%emt 0:10:01]} Qxc1 {[%emt 0:02:37]} 19. Rbxc1 {[%emt 0:02:53]} g5 {[%emt 0:04:10]} (19... Rcd8 $11) 20. e5 {[%emt 0:11:43]} Bd5 {[%emt 0:09:32]} 21. g4 {[%emt 0:10:19]} Ng7 {[%emt 0:00:35]} 22. Nxd5 {[%emt 0:00:44]} cxd5 {[%emt 0:00:38]} 23. Nc3 {[%emt 0:00:42]} Rcd8 {[%emt 0:07:30]} 24. Nb5 {[%emt 0:01:59]} Nge6 {[%emt 0:03:37]} 25. Nd6 {[%emt 0:02:39]} Re7 {[%emt 0:03:35]} 26. Nf5 {[%emt 0:00:31]} Red7 {[%emt 0:01:34]} 27. Bb5 {[%emt 0:00:56]} Nf4 {[%emt 0:00:35]} 28. Kh1 {[%emt 0:02:17]} f6 {[%emt 0:05:38]} 29. exf6 {[%emt 0:02:20]} Kf7 {[%emt 0:01:18]} 30. h4 {[%emt 0:09:03]} Kxf6 {[%emt 0:00:49]} 31. hxg5+ {[%emt 0:00:57]} Kxg5 {[%emt 0:00:25]} 32. Bxd7 Rxd7 {[%emt 0:00:07]} 33. Rc8 {[%emt 0:01:48]} N8g6 {[%emt 0:00:51]} 34. Rc3 {[%emt 0:03:41]} Kxg4 {[%emt 0:03:06]} 35. Ne3+ {[%emt 0:00:39]} Kg5 {[%emt 0:01:18]} 36. Ng2 {[%emt 0:02:54]} Ne2 {[%emt 0:01:20]} 37. Rd3 {[%emt 0:00:34]} Re7 {[%emt 0:03:05]} 38. Re1 {[%emt 0:00:39]} Re4 {[%emt 0:01:41]} 39. Re3 {[%emt 0:00:31]} Rxe3 {[%emt 0:04:01]} 40. Nxe3 {[%emt 0:00:00]} Nxd4 {[%emt 0:00:00]} 41. Nxd5 {[%emt 0:04:45]} Nc2 {[%emt 0:04:51]} 42. Rc1 {[%emt 0:00:44]} Nxa3 {[%emt 0:00:58]} 43. Rc7 {[%emt 0:00:19]} Kf5 $1 {[%emt 0:02:58]} 44. Ne7+ {[%emt 0:04:37]} Nxe7 {[%emt 0:01:30]} 45. Rxe7 {[%emt 0:00:02]} b6 {[%emt 0:00:49]} 46. Rxa7 {[%emt 0:04:00]} Nc2 {[%emt 0:00:20]} 47. b5 {[%emt 0:01:42]} Nd4 {[%emt 0:00:39]} 48. Rxh7 {[%emt 0:00:51]} Ke4 {[%emt 0:01:28]} 49. Rb7 {[%emt 0:01:24]} Nxb5 {[%emt 0:00:11]} 50. Rxb6 {[%emt 0:00:06]} Nd4 {[%emt 0:00:50]} 51. Kg2 {[%emt 0:00:00]} Ke3 {[%emt 0:00:29]} 52. Kf1 {[%emt 0:00:00]} Kf3 {[%emt 0:00:55]} 53. Rb4 {[%emt 0:00:15]} Ke3 {[%emt 0:00:10]} 54. Rb8 {[%emt 0:00:18]} Ke4 {[%emt 0:01:03]} 55. Kf2 {[%emt 0:00:05]} Kf4 {[%emt 0:01:32]} 56. Rb4 $11 {[%emt 0:00:46]} Ke4 {[%emt 0:00:09]} 57. Kg3 {[%emt 0:00:08]} Ke5 {[%emt 0:00:46]} 58. Rb8 {[%emt 0:00:24]} Ne2+ {[%emt 0:00:23]} 59. Kf3 {[%emt 0:00:38]} Nd4+ {[%emt 0:00:06]} 60. Ke3 {[%emt 0:00:04]} Nf5+ {[%emt 0:00:13]} 61. Kd3 {[%emt 0:00:10]} Nd6 {[%emt 0:00:46]} 62. Rh8 {[%emt 0:00:41]} Nf5 {[%emt 0:01:25]} 63. Re8+ {[%emt 0:01:00]} Kf4 {[%emt 0:00:47]} 64. Re4+ {[%emt 0:00:45]} Kg5 {[%emt 0:00:43]} 65. Ra4 {[%emt 0:00:17]} Kf6 {[%emt 0:00:18]} 66. Ke4 {[%emt 0:00:10]} Nd6+ {[%emt 0:00:16]} 67. Kf4 {[%emt 0:00:11]} Ke6 {[%emt 0:00:35]} 68. Ra5 {[%emt 0:00:16]} Kf6 {[%emt 0:00:17]} 69. Rd5 {[%emt 0:00:55]} Ke6 {[%emt 0:00:27]} 70. Rh5 {[%emt 0:00:15]} Nf7 {[%emt 0:01:14]} 71. Ke4 {[%emt 0:00:27]} Nd6+ {[%emt 0:00:16]} 72. Kd4 {[%emt 0:00:27]} Nf5+ {[%emt 0:00:09]} 73. Kc5 {[%emt 0:00:23]} Ke5 {[%emt 0:00:14]} 74. Rh1 {[%emt 0:00:22]} Ne3 {[%emt 0:00:32]} 75. Rh8 {[%emt 0:00:30]} Ke4 {[%emt 0:00:17]} 76. Rh4+ {[%emt 0:01:27]} Ke5 {[%emt 0:00:22]} 77. Rh8 {[%emt 0:00:48]} Ke4 {[%emt 0:00:21]} 78. Re8+ {[%emt 0:00:02]} Kd3 {[%emt 0:00:09]} 79. Rd8+ Ke4 80. Rd4+ Ke5 1/2-1/2

[Event "4th Memorial Warakomska-B 2020"]
[Site "Suwalki"]
[Date "2020.08.11"]
[Round "7.9"]
[White "Zalega, Maciej"]
[Black "Kitewski, Bartosz"]
[Result "1-0"]
[ECO "C02"]
[WhiteElo "1743"]
[BlackElo "1718"]
[Annotator "NA"]
[PlyCount "87"]
[EventDate "2020.08.06"]
[EventType "swiss"]
[EventCountry "POL"]
[SourceTitle "playchess.com"]
[Source "ChessBase"]
[SourceQuality "1"]
[TimeControl "40/5400+30:1800+30"]

1. e4 {[%emt 0:00:00]} e6 {[%emt 0:00:00]} 2. d4 {[%emt 0:00:00]} d5 {[%emt 0:00:00]} 3. e5 {[%emt 0:00:00]} c5 {[%emt 0:00:00]} 4. c3 {[%emt 0:00:00]} Nc6 {[%emt 0:00:05]} 5. Nf3 {[%emt 0:00:00]} Qb6 {[%emt 0:00:11]} 6. a3 {[%emt 0:00:00]} Bd7 {[%emt 0:01:27]} 7. b4 {[%emt 0:00:06]} cxd4 {[%emt 0:01:06]} 8. cxd4 {[%emt 0:00:05]} Rc8 {[%emt 0:00:31]} 9. Bb2 {[%emt 0:00:06]} Nh6 {[%emt 0:10:19]} 10. Nc3 {[%emt 0:01:36]} Na5 {[%emt 0:15:21]} 11. Na4 {[%emt 0:01:07]} Bxa4 {[%emt 0:01:16]} 12. Qxa4+ {[%emt 0:01:22]} Nc6 {[%emt 0:00:07]} 13. Rc1 {[%emt 0:01:37]} a6 {[%emt 0:01:57]} 14. Bd3 {[%emt 0:05:32]} Be7 {[%emt 0:06:50]} 15. O-O {[%emt 0:01:31]} O-O {[%emt 0:00:04]} 16. Qc2 {[%emt 0:09:21]} Nxe5 {[%emt 0:07:23]} 17. Qxc8 {[%emt 0:03:16]} Nxf3+ {[%emt 0:00:23]} 18. gxf3 {[%emt 0:00:26]} Rxc8 {[%emt 0:00:39]} 19. Rxc8+ {[%emt 0:00:04]} Bd8 {[%emt 0:01:10]} 20. b5 {[%emt 0:15:39]} g6 {[%emt 0:05:01]} 21. bxa6 bxa6 {[%emt 0:00:57]} 22. Bc3 {[%emt 0:04:41]} Kg7 {[%emt 0:02:12]} 23. Bb4 {[%emt 0:07:50]} Bg5 {[%emt 0:07:49]} 24. Rb1 {[%emt 0:09:04]} Qa7 {[%emt 0:02:56]} 25. Bc5 {[%emt 0:02:58]} Qd7 {[%emt 0:00:29]} 26. Bxa6 {[%emt 0:00:47]} Nf5 {[%emt 0:02:29]} 27. Rb4 {[%emt 0:17:59]} Nh4 {[%emt 0:11:23]} 28. Ra8 {[%emt 0:04:10]} Nxf3+ {[%emt 0:03:07]} 29. Kg2 {[%emt 0:00:42]} Nh4+ {[%emt 0:03:09]} 30. Kf1 {[%emt 0:01:08]} Qc7 {[%emt 0:02:20]} 31. Rb7 {[%emt 0:11:26]} Qxh2 {[%emt 0:03:04]} 32. Bf8+ {[%emt 0:01:29]} Kf6 {[%emt 0:00:06]} 33. Be7+ {[%emt 0:01:14]} Kf5 {[%emt 0:01:01]} 34. Bd3+ {[%emt 0:00:32]} Kg4 {[%emt 0:00:44]} 35. Be2+ {[%emt 0:00:43]} Nf3 {[%emt 0:03:54]} 36. Bxf3+ {[%emt 0:00:32]} Kxf3 {[%emt 0:00:06]} 37. Rb3+ {[%emt 0:00:06]} Ke4 {[%emt 0:00:13]} 38. Bxg5 {[%emt 0:00:49]} Qh1+ {[%emt 0:01:30]} 39. Ke2 {[%emt 0:00:05]} Qh5+ {[%emt 0:00:29]} 40. f3+ {[%emt 0:00:00]} Kxd4 {[%emt 0:00:00]} 41. Bf4 {[%emt 0:02:36]} e5 {[%emt 0:01:53]} 42. Be3+ {[%emt 0:00:07]} Kc4 {[%emt 0:00:10]} 43. Rb4+ {[%emt 0:00:05]} Kc3 {[%emt 0:00:06]} 44. Rc8# {[%emt 0:00:03]} 1-0

[Event "4th Memorial Warakomska-B 2020"]
[Site "Suwalki"]
[Date "2020.08.11"]
[Round "7.10"]
[White "Obolonin, Filipp"]
[Black "Wydornik, Robert"]
[Result "1-0"]
[ECO "D02"]
[WhiteElo "1922"]
[BlackElo "1361"]
[Annotator "ChessBase"]
[PlyCount "77"]
[EventDate "2020.08.06"]
[EventType "swiss"]
[EventCountry "POL"]
[SourceTitle "playchess.com"]
[Source "ChessBase"]
[SourceQuality "1"]
[TimeControl "40/5400+30:1800+30"]

1. d4 {[%emt 0:00:54]} d5 {[%emt 0:04:12]} 2. Nf3 {[%emt 0:00:36]} Nf6 {[%emt 0:00:06]} 3. g3 {[%emt 0:00:26]} e6 {[%emt 0:00:46]} 4. Bg2 {[%emt 0:00:16]} c5 {[%emt 0:01:10]} 5. O-O {[%emt 0:00:41]} cxd4 {[%emt 0:00:43]} 6. Nxd4 {[%emt 0:00:41]} Be7 {[%emt 0:01:17]} 7. c4 {[%emt 0:00:35]} O-O {[%emt 0:07:36]} 8. cxd5 {[%emt 0:00:20]} Nxd5 {[%emt 0:00:13]} 9. e4 {[%emt 0:00:22]} Nf6 {[%emt 0:01:17]} 10. Nc3 {[%emt 0:00:12]} e5 {[%emt 0:03:10]} 11. Nb3 {[%emt 0:02:23]} Bg4 {[%emt 0:06:37]} 12. Qe1 {[%emt 0:05:26]} a6 {[%emt 0:03:34]} 13. Be3 {[%emt 0:00:10]} Nbd7 {[%emt 0:06:08]} 14. f3 {[%emt 0:01:31]} Be6 {[%emt 0:00:33]} 15. Rd1 {[%emt 0:00:19]} Bxb3 {[%emt 0:05:13]} 16. axb3 {[%emt 0:00:12]} Bb4 {[%emt 0:00:44]} 17. Qe2 {[%emt 0:03:40]} Qe7 {[%emt 0:03:48]} 18. Kh1 {[%emt 0:03:41]} Rac8 {[%emt 0:04:48]} 19. Na2 {[%emt 0:02:15]} Bc5 {[%emt 0:02:24]} 20. Bg5 {[%emt 0:00:11]} h6 {[%emt 0:03:29]} 21. Bd2 {[%emt 0:01:59]} Rfd8 {[%emt 0:02:55]} 22. Bh3 {[%emt 0:00:35]} Rb8 {[%emt 0:03:51]} 23. b4 {[%emt 0:01:58]} Bd4 {[%emt 0:03:17]} 24. b5 {[%emt 0:00:43]} axb5 {[%emt 0:01:57]} 25. Qxb5 {[%emt 0:00:28]} Qc5 {[%emt 0:01:04]} 26. Qb3 {[%emt 0:01:47]} Qb6 {[%emt 0:02:26]} 27. Bb4 {[%emt 0:01:53]} Bc5 {[%emt 0:03:59]} 28. Qc3 {[%emt 0:02:36]} Ra8 {[%emt 0:04:52]} 29. Bxd7 {[%emt 0:00:45]} Bd4 {[%emt 0:03:45]} 30. Qb3 {[%emt 0:02:23]} Rxd7 {[%emt 0:00:33]} 31. Nc1 {[%emt 0:01:07]} Rad8 {[%emt 0:01:18]} 32. Nd3 {[%emt 0:04:21]} Nh7 {[%emt 0:07:04]} 33. Qc2 {[%emt 0:07:19]} Bxb2 {[%emt 0:03:01]} 34. Bc5 {[%emt 0:02:27]} Qb5 {[%emt 0:03:04]} 35. Qxb2 {[%emt 0:00:46]} Qc4 {[%emt 0:00:59]} 36. Bb6 {[%emt 0:00:31]} Rc8 {[%emt 0:01:41]} 37. Nxe5 {[%emt 0:00:21]} Rxd1 {[%emt 0:01:00]} 38. Rxd1 {[%emt 0:00:11]} Ng5 {[%emt 0:00:43]} 39. Nxc4 {[%emt 0:00:08]} 1-0

[Event "4th Memorial Warakomska-B 2020"]
[Site "Suwalki"]
[Date "2020.08.11"]
[Round "7.11"]
[White "Ciszewski, Krzysztof"]
[Black "Cwiek, Stefan"]
[Result "1-0"]
[ECO "D06"]
[WhiteElo "1728"]
[BlackElo "1349"]
[Annotator "NA"]
[PlyCount "149"]
[EventDate "2020.08.06"]
[EventType "swiss"]
[EventCountry "POL"]
[SourceTitle "playchess.com"]
[Source "ChessBase"]
[SourceQuality "1"]
[TimeControl "40/5400+30:1800+30"]

1. d4 {[%emt 0:00:00]} d5 {[%emt 0:00:00]} 2. c4 {[%emt 0:00:00]} Bf5 {[%emt 0:00:00]} 3. Nc3 {[%emt 0:00:07]} e6 {[%emt 0:00:19]} 4. Nf3 {[%emt 0:01:21]} c6 {[%emt 0:01:43]} 5. Bf4 {[%emt 0:01:05]} Bd6 {[%emt 0:01:54]} 6. Bxd6 {[%emt 0:02:47]} Qxd6 {[%emt 0:00:17]} 7. c5 {[%emt 0:01:14]} Qc7 {[%emt 0:01:13]} 8. e3 {[%emt 0:01:44]} Nd7 {[%emt 0:04:32]} 9. Be2 {[%emt 0:03:58]} Ne7 {[%emt 0:03:37]} 10. O-O {[%emt 0:07:13]} O-O {[%emt 0:03:28]} 11. b4 {[%emt 0:13:53]} b5 {[%emt 0:04:48]} 12. a4 {[%emt 0:01:43]} a6 {[%emt 0:06:12]} 13. Qb3 {[%emt 0:07:43]} e5 {[%emt 0:04:27]} 14. Ra3 {[%emt 0:02:05]} exd4 {[%emt 0:02:31]} 15. exd4 {[%emt 0:01:29]} Ra7 {[%emt 0:03:21]} 16. Rfa1 {[%emt 0:02:33]} Rfa8 {[%emt 0:01:19]} 17. Qa2 {[%emt 0:15:17]} Nc8 {[%emt 0:04:58]} 18. Qd2 {[%emt 0:02:03]} Nf6 {[%emt 0:01:39]} 19. Qg5 {[%emt 0:02:57]} Bc2 {[%emt 0:02:17]} 20. Qe5 {[%emt 0:03:04]} Qd7 {[%emt 0:08:44]} 21. h3 {[%emt 0:03:13]} bxa4 {[%emt 0:07:35]} 22. Nxa4 {[%emt 0:01:01]} Rb7 {[%emt 0:02:15]} 23. Bxa6 {[%emt 0:05:39]} Rxa6 {[%emt 0:09:51]} 24. Nb6 {[%emt 0:00:11]} Raxb6 {[%emt 0:06:24]} 25. cxb6 {[%emt 0:00:22]} Rxb6 {[%emt 0:01:52]} 26. Qe2 {[%emt 0:01:33]} Bg6 {[%emt 0:01:55]} 27. Ne5 {[%emt 0:00:18]} Qb7 {[%emt 0:01:27]} 28. Ra8 {[%emt 0:00:51]} h6 {[%emt 0:02:58]} 29. Nxg6 {[%emt 0:00:56]} fxg6 {[%emt 0:00:58]} 30. Qe6+ {[%emt 0:00:08]} Kh7 {[%emt 0:00:14]} 31. Rxc8 {[%emt 0:00:40]} Qd7 {[%emt 0:00:38]} 32. Qxd7 {[%emt 0:01:13]} Nxd7 {[%emt 0:00:08]} 33. Rc7 {[%emt 0:01:29]} Nf6 {[%emt 0:00:22]} 34. Raa7 {[%emt 0:00:33]} Ne8 {[%emt 0:00:43]} 35. Re7 {[%emt 0:00:04]} Rb8 {[%emt 0:00:05]} 36. Rab7 {[%emt 0:02:01]} Rc8 {[%emt 0:00:17]} 37. Kf1 {[%emt 0:01:47]} g5 {[%emt 0:00:31]} 38. g4 {[%emt 0:00:24]} h5 {[%emt 0:02:29]} 39. gxh5 {[%emt 0:00:22]} Kh6 {[%emt 0:00:14]} 40. Re6+ {[%emt 0:00:00]} Kxh5 {[%emt 0:00:00]} 41. Rb6 {[%emt 0:01:16]} Nf6 {[%emt 0:00:52]} 42. Rbxc6 {[%emt 0:01:09]} Rb8 {[%emt 0:00:33]} 43. Rb6 {[%emt 0:02:22]} Ra8 {[%emt 0:00:42]} 44. b5 {[%emt 0:27:37]} Ra4 {[%emt 0:06:04]} 45. Rb8 {[%emt 0:00:57]} Rxd4 {[%emt 0:00:17]} 46. b6 {[%emt 0:00:47]} g4 {[%emt 0:00:49]} 47. b7 {[%emt 0:01:05]} Rb4 {[%emt 0:05:10]} 48. Rh8+ {[%emt 0:01:05]} Kg5 {[%emt 0:00:17]} 49. h4+ {[%emt 0:00:10]} Kf5 {[%emt 0:00:15]} 50. Rxf6+ {[%emt 0:00:15]} Kxf6 {[%emt 0:00:13]} 51. b8=Q {[%emt 0:00:08]} Rxb8 {[%emt 0:00:07]} 52. Rxb8 {[%emt 0:00:03]} Ke5 {[%emt 0:00:19]} 53. Re8+ {[%emt 0:00:05]} Kf4 {[%emt 0:00:15]} 54. Kg2 {[%emt 0:00:22]} d4 {[%emt 0:00:10]} 55. Rd8 {[%emt 0:00:08]} Ke4 {[%emt 0:00:07]} 56. Kg3 {[%emt 0:00:01]} d3 {[%emt 0:00:35]} 57. Kxg4 {[%emt 0:00:02]} g6 {[%emt 0:00:08]} 58. Kg5 {[%emt 0:00:10]} Kf3 {[%emt 0:00:10]} 59. Kxg6 {[%emt 0:00:08]} Kxf2 {[%emt 0:00:27]} 60. h5 {[%emt 0:00:05]} Ke2 {[%emt 0:00:47]} 61. h6 {[%emt 0:00:09]} d2 {[%emt 0:00:15]} 62. Rxd2+ {[%emt 0:00:18]} Kxd2 {[%emt 0:00:07]} 63. h7 {[%emt 0:00:02]} Ke3 {[%emt 0:00:15]} 64. h8=Q {[%emt 0:00:07]} Kd3 {[%emt 0:00:04]} 65. Qh4 {[%emt 0:00:06]} Ke3 {[%emt 0:00:04]} 66. Kf5 {[%emt 0:00:05]} Kd3 {[%emt 0:00:05]} 67. Ke5 {[%emt 0:00:11]} Kc3 {[%emt 0:00:12]} 68. Kd5 {[%emt 0:00:04]} Kd3 {[%emt 0:00:05]} 69. Qd4+ {[%emt 0:00:04]} Ke2 {[%emt 0:00:10]} 70. Qc3 {[%emt 0:00:04]} Kf2 {[%emt 0:00:15]} 71. Ke4 {[%emt 0:00:03]} Kg2 {[%emt 0:00:06]} 72. Qf3+ {[%emt 0:00:10]} Kh2 {[%emt 0:00:06]} 73. Qg4 {[%emt 0:00:06]} Kh1 {[%emt 0:00:05]} 74. Kf3 {[%emt 0:00:03]} Kh2 {[%emt 0:00:06]} 75. Qg2# {[%emt 0:00:05]} 1-0

[Event "4th Memorial Warakomska-B 2020"]
[Site "Suwalki"]
[Date "2020.08.11"]
[Round "7.12"]
[White "Kasperczyk, Szymon"]
[Black "Jaszczuk, Piotr"]
[Result "1/2-1/2"]
[ECO "A46"]
[WhiteElo "1711"]
[BlackElo "1283"]
[Annotator "NA"]
[PlyCount "117"]
[EventDate "2020.08.06"]
[EventType "swiss"]
[EventCountry "POL"]
[SourceTitle "playchess.com"]
[Source "ChessBase"]
[SourceQuality "1"]
[TimeControl "40/5400+30:1800+30"]

1. d4 {[%emt 0:02:27]} Nf6 {[%emt 0:00:00]} 2. Nf3 {[%emt 0:00:16]} e6 {[%emt 0:00:22]} 3. Bg5 {[%emt 0:00:18]} b6 {[%emt 0:01:19]} 4. g3 {[%emt 0:00:13]} Bb7 {[%emt 0:00:49]} 5. Bg2 {[%emt 0:00:10]} h6 {[%emt 0:00:41]} 6. Bxf6 {[%emt 0:05:08]} Qxf6 {[%emt 0:01:12]} 7. Nbd2 {[%emt 0:00:10]} d5 {[%emt 0:05:13]} 8. O-O {[%emt 0:00:38]} Bd6 {[%emt 0:01:14]} 9. Re1 {[%emt 0:02:43]} O-O {[%emt 0:01:43]} 10. e4 {[%emt 0:02:57]} dxe4 {[%emt 0:00:59]} 11. Nxe4 {[%emt 0:00:17]} Qe7 {[%emt 0:01:52]} 12. Qd3 {[%emt 0:06:22]} f5 {[%emt 0:03:23]} 13. Ned2 {[%emt 0:07:01]} Qf6 {[%emt 0:04:44]} 14. Re2 {[%emt 0:03:33]} Nd7 {[%emt 0:01:53]} 15. Ne5 {[%emt 0:01:10]} Bxe5 {[%emt 0:11:52]} 16. Bxb7 {[%emt 0:02:22]} Rab8 {[%emt 0:02:26]} 17. dxe5 {[%emt 0:00:55]} Nxe5 {[%emt 0:00:58]} 18. Qc3 {[%emt 0:00:44]} Rxb7 {[%emt 0:04:01]} 19. Qxe5 {[%emt 0:00:09]} Qxe5 {[%emt 0:01:31]} 20. Rxe5 {[%emt 0:00:07]} Kf7 {[%emt 0:00:08]} 21. Rae1 {[%emt 0:00:11]} Re8 {[%emt 0:00:53]} 22. Nf3 {[%emt 0:01:24]} c5 {[%emt 0:01:12]} 23. Rd1 {[%emt 0:00:39]} Rbe7 {[%emt 0:02:52]} 24. Ne1 {[%emt 0:01:26]} Kf6 {[%emt 0:01:49]} 25. f4 {[%emt 0:00:17]} g5 {[%emt 0:00:54]} 26. Kf2 {[%emt 0:02:03]} gxf4 {[%emt 0:01:35]} 27. gxf4 {[%emt 0:00:08]} Rg8 {[%emt 0:01:58]} 28. h3 {[%emt 0:02:39]} Reg7 {[%emt 0:05:54]} 29. Rd6 {[%emt 0:01:11]} Re8 {[%emt 0:01:07]} 30. Nf3 {[%emt 0:01:06]} Rge7 {[%emt 0:03:36]} 31. Re1 {[%emt 0:00:36]} Rg7 {[%emt 0:14:52]} 32. a3 {[%emt 0:00:40]} Rg6 {[%emt 0:05:40]} 33. Rg1 {[%emt 0:02:05]} Rxg1 {[%emt 0:01:19]} 34. Kxg1 {[%emt 0:00:05]} Rg8+ {[%emt 0:01:56]} 35. Kf2 {[%emt 0:00:15]} Ke7 {[%emt 0:01:12]} 36. Rd1 {[%emt 0:00:26]} Rb8 {[%emt 0:03:51]} 37. Ne5 {[%emt 0:00:27]} Rb7 {[%emt 0:00:59]} 38. Rg1 {[%emt 0:01:03]} Kd6 {[%emt 0:01:28]} 39. c4 {[%emt 0:00:37]} b5 {[%emt 0:02:25]} 40. Rd1+ {[%emt 0:00:00]} Ke7 {[%emt 0:00:00]} 41. Nc6+ {[%emt 0:02:26]} Kf6 {[%emt 0:02:27]} 42. Na5 {[%emt 0:01:51]} Rb6 {[%emt 0:01:39]} 43. Rd7 {[%emt 0:00:39]} Ra6 {[%emt 0:01:35]} 44. Nb3 {[%emt 0:01:35]} bxc4 {[%emt 0:01:43]} 45. Nd2 {[%emt 0:00:27]} c3 {[%emt 0:00:43]} 46. bxc3 {[%emt 0:03:20]} Rxa3 {[%emt 0:01:25]} 47. Nf3 {[%emt 0:00:16]} Kg6 {[%emt 0:01:05]} 48. Ne5+ {[%emt 0:00:48]} Kh5 {[%emt 0:01:39]} 49. c4 {[%emt 0:02:14]} a5 {[%emt 0:02:01]} 50. Rc7 {[%emt 0:00:35]} a4 {[%emt 0:00:42]} 51. Rxc5 {[%emt 0:00:30]} Rxh3 {[%emt 0:01:15]} 52. Ra5 {[%emt 0:00:19]} a3 {[%emt 0:00:45]} 53. c5 {[%emt 0:00:10]} Rc3 {[%emt 0:02:07]} 54. c6 {[%emt 0:00:08]} Kh4 {[%emt 0:07:20]} 55. Ke2 {[%emt 0:01:07]} a2 {[%emt 0:00:30]} 56. Kd2 {[%emt 0:01:54]} Rc5 {[%emt 0:00:22]} 57. Rxa2 {[%emt 0:00:10]} Kg3 {[%emt 0:00:17]} 58. Ra3+ {[%emt 0:00:17]} Kg2 {[%emt 0:00:52]} 59. Rc3 {[%emt 0:00:26]} 1/2-1/2

[Event "4th Memorial Warakomska-B 2020"]
[Site "Suwalki"]
[Date "2020.08.11"]
[Round "7.13"]
[White "Harasimczuk, Jakub"]
[Black "Wasik, Jozef"]
[Result "0-1"]
[ECO "D10"]
[WhiteElo "1400"]
[BlackElo "1646"]
[Annotator "NA"]
[PlyCount "82"]
[EventDate "2020.08.06"]
[EventType "swiss"]
[EventCountry "POL"]
[SourceTitle "playchess.com"]
[Source "ChessBase"]
[SourceQuality "1"]
[TimeControl "40/5400+30:1800+30"]

1. d4 {[%emt 0:00:00]} d5 {[%emt 0:00:54]} 2. c4 {[%emt 0:00:35]} c6 {[%emt 0:00:16]} 3. Nc3 {[%emt 0:01:34]} Nf6 {[%emt 0:00:29]} 4. e3 {[%emt 0:04:17]} g6 {[%emt 0:02:45]} 5. Nf3 {[%emt 0:02:42]} Bg7 {[%emt 0:00:29]} 6. cxd5 {[%emt 0:02:09]} cxd5 {[%emt 0:00:57]} 7. Bd3 {[%emt 0:06:04]} Nc6 {[%emt 0:00:45]} 8. a3 {[%emt 0:02:00]} O-O {[%emt 0:00:28]} 9. O-O {[%emt 0:02:22]} Bg4 {[%emt 0:02:00]} 10. Be2 {[%emt 0:03:37]} Rc8 {[%emt 0:05:44]} 11. h3 {[%emt 0:04:12]} Bf5 {[%emt 0:01:16]} 12. Nh4 {[%emt 0:07:07]} Ne4 {[%emt 0:11:16]} 13. Nxf5 {[%emt 0:10:12]} gxf5 {[%emt 0:01:54]} 14. Qb3 {[%emt 0:05:25]} Nxc3 {[%emt 0:02:00]} 15. bxc3 {[%emt 0:00:43]} Qd7 {[%emt 0:03:43]} 16. a4 {[%emt 0:08:23]} Rc7 {[%emt 0:04:36]} 17. a5 {[%emt 0:03:13]} Rfc8 {[%emt 0:01:50]} 18. Bd2 {[%emt 0:07:33]} e6 {[%emt 0:01:47]} 19. Rfc1 {[%emt 0:04:23]} a6 {[%emt 0:03:42]} 20. c4 {[%emt 0:04:20]} dxc4 {[%emt 0:13:55]} 21. Rxc4 {[%emt 0:01:42]} e5 {[%emt 0:04:08]} 22. Bf3 {[%emt 0:08:07]} exd4 {[%emt 0:01:48]} 23. Rd1 {[%emt 0:04:19]} Ne5 {[%emt 0:03:01]} 24. Rxc7 {[%emt 0:02:04]} Nxf3+ {[%emt 0:00:31]} 25. gxf3 {[%emt 0:00:30]} Qxc7 {[%emt 0:06:19]} 26. Rb1 {[%emt 0:02:58]} dxe3 {[%emt 0:18:29]} 27. Qxe3 {[%emt 0:01:55]} Rd8 {[%emt 0:02:23]} 28. Qe2 {[%emt 0:00:51]} Bd4 {[%emt 0:01:37]} 29. Kg2 {[%emt 0:00:39]} Ba7 {[%emt 0:01:11]} 30. Rc1 {[%emt 0:00:30]} Qd6 {[%emt 0:00:18]} 31. Be3 {[%emt 0:00:29]} Re8 {[%emt 0:00:54]} 32. Qc2 {[%emt 0:00:29]} Bxe3 {[%emt 0:00:58]} 33. fxe3 {[%emt 0:00:27]} Rxe3 {[%emt 0:00:22]} 34. Rd1 {[%emt 0:00:34]} Qe6 {[%emt 0:01:14]} 35. Rd8+ {[%emt 0:00:28]} Kg7 {[%emt 0:00:14]} 36. Kf2 {[%emt 0:00:32]} f4 {[%emt 0:00:37]} 37. Qd2 {[%emt 0:00:31]} Qf6 {[%emt 0:01:29]} 38. Qd1 {[%emt 0:00:29]} Qh4+ {[%emt 0:00:16]} 39. Kg1 {[%emt 0:00:32]} Re1+ {[%emt 0:00:18]} 40. Qxe1 {[%emt 0:00:00]} Qxe1+ {[%emt 0:00:00]} 41. Kg2 {[%emt 0:01:19]} Qxa5 0-1